bitfinex-derivatives/quotes_ETHF0:USTF0_20240826
["timestamp","ask_amount","ask_price","bid_price","bid_amount"]
[1724705269176,5.42484,2692.8,2692.7,0.00557051]
[1724705269480,6.35296,2692.8,2692.7,0.00557051]
[1724705271784,11.35296,2692.8,2692.7,0.00557051]
[1724705272688,5.01296,2692.8,2692.7,0.00557051]
[1724705272883,11.35296,2692.8,2692.7,0.00557051]
[1724705273082,0.3713,2692.4,2692.3,0.00463126]
[1724705273680,1.6653,2692.4,2692.3,0.00463126]
[1724705274195,1.6653,2692.4,2692.0,2.7367]
[1724705274196,0.37133,2692.2,2692.1,0.00557051]
[1724705274492,1.29966,2692.2,2692.1,0.00557051]
[1724705274680,5.01406,2692.2,2692.1,0.00557051]
[1724705275281,13.22406,2692.2,2692.1,0.00980552]
[1724705275689,15.90136,2692.2,2692.1,0.00980552]
[1724705276185,12.69136,2692.2,2692.1,0.00980552]
[1724705276391,6.76303,2692.2,2692.1,0.00980552]
[1724705277483,3.04863,2692.2,2692.1,0.00980552]
[1724705277686,7.69136,2692.2,2692.1,0.00980552]
[1724705282684,0.37133,2692.2,2692.1,0.00980552]
[1724705283396,1.29966,2692.2,2692.1,0.00980552]
[1724705286888,0.37133,2692.2,2692.1,0.00980552]
[1724705287090,0.37129,2692.5,2692.1,3.72420552]
[1724705287387,0.37127,2692.7,2692.3,3.21]
[1724705287591,3.2078,2692.8,2692.4,2.6541]
[1724705287592,0.37127,2692.6,2692.4,2.6541]
[1724705287791,0.37127,2692.6,2692.4,3.0254]
[1724705288583,2.27162493,2692.9,2692.4,3.0254]
[1724705288584,0.37127,2692.7,2692.5,0.37129]
[1724705289099,0.37677493,2692.9,2692.6,0.37126]
[1724705289289,0.37677493,2692.9,2692.7,1.3463]
[1724705289484,0.00553493,2692.9,2692.7,1.3463]
[1724705289791,0.37125,2692.8,2692.7,1.3463]
[1724705289995,0.00553493,2692.9,2692.7,1.3463]
[1724705289996,0.37677493,2692.9,2692.7,1.3463]
[1724705290300,0.37125,2692.8,2692.7,1.3463]
[1724705290691,0.92815,2692.7,2692.4,2.6541]
[1724705290899,0.37129,2692.5,2692.4,2.6541]
[1724705291197,0.37129,2692.5,2692.4,1.3073]
[1724705291198,1.29951,2692.5,2692.4,1.3073]
[1724705291390,0.37131,2692.3,2692.2,8.5616]
[1724705291593,0.37131,2692.3,2692.2,4.4876]
[1724705291998,0.37131,2692.3,2692.2,5.7762]
[1724705293794,0.37131,2692.3,2692.2,2.5684]
[1724705293999,0.37133,2692.2,2692.1,1.29430552]
[1724705294803,4.08573,2692.2,2692.1,0.00980552]
[1724705295903,0.37133,2692.2,2692.1,0.00980552]
[1724705296512,4.69334722,2692.6,2692.1,0.00980552]
[1724705296700,4.69334722,2692.6,2692.1,1.30490552]
[1724705296701,0.37133,2692.2,2692.1,1.30490552]
[1724705297001,0.37132,2692.3,2692.1,1.30490552]
[1724705299710,0.37133,2692.2,2692.1,1.30490552]
[1724705304408,0.92815,2692.7,2692.1,8.60064552]
[1724705304712,0.92815,2692.7,2692.1,4.51490552]
[1724705305008,5.14924722,2692.8,2692.1,4.51490552]
[1724705305009,0.37131,2692.3,2692.1,4.51490552]
[1724705305402,0.37131,2692.3,2692.1,8.22930552]
[1724705305708,0.37131,2692.3,2692.1,4.51490552]
[1724705305900,0.37131,2692.3,2692.1,8.22930552]
[1724705306609,0.37131,2692.3,2692.1,4.51490552]
[1724705308108,0.37132,2692.3,2692.1,4.51490552]
[1724705310316,0.92819,2692.6,2692.1,4.51490552]
[1724705310317,0.37131,2692.4,2692.1,8.22930552]
[1724705310609,0.92819,2692.6,2692.1,4.51490552]
[1724705310610,0.37131,2692.3,2692.1,4.51490552]
[1724705311004,0.37131,2692.3,2692.1,8.22930552]
[1724705312609,0.37133,2692.2,2692.1,4.51490552]
[1724705313011,0.37133,2692.2,2692.1,8.22930552]
[1724705315311,0.37131,2692.3,2692.1,8.22930552]
[1724705315613,1.94144722,2692.4,2692.1,4.51490552]
[1724705315809,0.37133,2692.2,2692.1,4.51490552]
[1724705316218,0.37133,2692.2,2692.1,8.22930552]
[1724705316414,0.37132,2692.3,2692.1,8.22930552]
[1724705316615,0.37132,2692.3,2692.1,4.51490552]
[1724705318015,0.37132,2692.3,2692.2,1.34]
[1724705323620,0.37133,2692.2,2692.1,0.00980552]
[1724705323821,6.95550722,2692.2,2692.1,0.00980552]
[1724705324132,8.36919903,2692.2,2692.1,0.00980552]
[1724705324314,3.72646903,2692.2,2692.1,0.00980552]
[1724705324624,5.01406,2692.2,2692.1,1.34980552]
[1724705324924,7.44086903,2692.2,2692.1,1.34980552]
[1724705325226,5.01406,2692.2,2692.1,1.34980552]
[1724705325428,1.29966,2692.2,2692.1,1.34980552]
[1724705325628,0.37133,2692.2,2692.1,1.34980552]
[1724705326033,2.31748322,2692.2,2692.1,1.34980552]
[1724705326222,0.37133,2692.2,2692.1,1.34980552]
[1724705328230,2.31771082,2692.2,2692.1,1.34980552]
[1724705329025,3.25676,2692.2,2692.1,1.34980552]
[1724705333123,3.25676,2692.2,2692.1,1.35400552]
[1724705336132,5.68356903,2692.2,2692.1,1.35400552]
[1724705336322,5.68356903,2692.2,2692.1,0.01400552]
[1724705336627,8.31116,2692.2,2692.1,0.01400552]
[1724705342527,4.08573,2692.2,2692.1,0.01400552]
[1724705342724,2.80492878,2692.2,2692.1,1.35400552]
[1724705342928,2.31813191,2692.2,2692.1,1.35400552]
[1724705343831,2.31813191,2692.2,2692.1,0.01400552]
[1724705344032,0.37133,2692.2,2692.1,0.01400552]
[1724705344331,2.31811689,2692.2,2692.1,0.01400552]
[1724705344630,2.31811689,2692.2,2692.1,1.35400552]
[1724705344631,1.94678689,2692.2,2692.1,1.35400552]
[1724705345035,2.31811689,2692.2,2692.1,1.35400552]
[1724705345232,0.37133,2692.2,2692.1,1.35400552]
[1724705345921,2.31810689,2692.3,2692.1,5.06840552]
[1724705348137,1.94678689,2692.3,2692.1,5.06840552]
[1724705348635,0.37131,2692.4,2692.1,5.06840552]
[1724705348636,1.94678689,2692.4,2692.1,5.06840552]
[1724705348833,2.31808689,2692.4,2692.3,1.34]
[1724705349937,2.31808689,2692.4,2692.3,5.0544]
[1724705349938,1.94678689,2692.4,2692.3,5.0544]
[1724705350138,2.31808689,2692.5,2692.3,5.0544]
[1724705350339,2.31808689,2692.5,2692.4,1.8385]
[1724705350536,2.31808689,2692.5,2692.4,2.7155]
[1724705353125,0.3713,2692.5,2692.4,2.7155]
[1724705353838,2.31756089,2692.5,2692.4,2.7155]
[1724705354138,0.3713,2692.5,2692.4,2.7155]
[1724705354532,2.3175637,2692.5,2692.4,2.7155]
[1724705356553,0.3713,2692.5,2692.4,6.4299]
[1724705356726,0.37128,2692.6,2692.4,6.8012]
[1724705356927,1.9462637,2692.8,2692.5,5.0536]
[1724705357129,0.00553493,2692.9,2692.8,0.37125]
[1724705357334,0.00553493,2692.9,2692.8,2.07715]
[1724705357536,0.00553493,2692.9,2692.8,5.79075]
[1724705357935,0.00553493,2692.9,2692.8,8.99855]
[1724705358237,0.00553493,2692.9,2692.8,12.20855]
[1724705358429,0.00553493,2692.9,2692.8,11.8373]
[1724705358833,0.37676493,2692.9,2692.8,11.8373]
[1724705359035,0.37676493,2692.9,2692.8,8.6273]
[1724705359545,0.37676493,2692.9,2692.8,4.9137]
[1724705359743,0.37676493,2692.9,2692.8,8.6273]
[1724705364441,0.00553493,2692.9,2692.8,12.20855]
[1724705366545,0.00553493,2692.9,2692.8,11.8373]
[1724705366738,0.37676493,2692.9,2692.8,8.6273]
[1724705370347,0.37676493,2692.9,2692.8,4.9137]
[1724705371049,0.37676493,2692.9,2692.8,8.6273]
[1724705371435,0.37676493,2692.9,2692.8,4.9137]
[1724705372352,0.37676493,2692.9,2692.8,5.4195]
[1724705372661,0.37676493,2692.9,2692.8,4.9137]
[1724705373245,0.37676493,2692.9,2692.8,8.6273]
[1724705373450,0.37676493,2692.9,2692.8,5.837]
[1724705373652,0.37676493,2692.9,2692.8,9.5506]
[1724705375049,0.37676493,2692.9,2692.8,6.3428]
[1724705375251,0.37676493,2692.9,2692.8,9.5506]
[1724705376041,0.00553493,2692.9,2692.8,9.92185]
[1724705376243,0.00553493,2692.9,2692.8,9.5506]
[1724705376744,0.00553493,2692.9,2692.8,9.92185]
[1724705377146,0.37676493,2692.9,2692.8,9.5506]
[1724705379162,0.00553493,2692.9,2692.8,9.92185]
[1724705380058,0.00553493,2692.9,2692.8,11.26185]
[1724705385858,0.00553493,2692.9,2692.8,11.26605]
[1724705390653,0.37676493,2692.9,2692.8,9.1223]
[1724705390859,1.30485493,2692.9,2692.8,5.4087]
[1724705391153,3.07095493,2692.9,2692.8,3.212]
[1724705392467,0.37676493,2692.9,2692.8,4.552]
[1724705398761,0.92822,2692.5,2692.4,0.96204312]
[1724705398964,0.92822,2692.5,2692.1,5.55200552]
[1724705398965,0.37133,2692.2,2692.1,5.55200552]
[1724705399572,0.37133,2692.2,2692.1,6.89200552]
[1724705399773,0.37132,2692.3,2692.1,6.89200552]
[1724705401173,1.9462259,2692.4,2692.2,1.34]
[1724705402374,1.9462259,2692.4,2692.2,1.71133]
[1724705402578,2.3175259,2692.4,2692.2,1.34]
[1724705403473,0.3713,2692.4,2692.2,1.34]
[1724705403675,0.37131,2692.3,2692.2,1.34]
[1724705407567,0.37131,2692.4,2692.2,1.34]
[1724705408083,0.3713,2692.5,2692.2,1.71132]
[1724705408280,1.9462259,2692.6,2692.4,1.34]
[1724705408480,0.00553493,2692.9,2692.5,2.41346617]
[1724705408680,0.00553493,2692.9,2692.8,1.34]
[1724705415583,0.00401005,2693.0,2692.9,0.37123]
[1724705415780,0.00401005,2693.0,2692.9,4.08483]
[1724705415981,0.00401005,2693.0,2692.9,5.62573]
[1724705417999,0.00401005,2693.0,2692.9,8.83573]
[1724705420194,1.9462259,2693.4,2692.9,8.4645]
[1724705420398,2.3173859,2693.5,2693.2,0.37118]
[1724705420596,0.37116,2693.5,2693.3,2.1968]
[1724705420902,1.9462259,2693.8,2693.4,3.21]
[1724705421092,0.00471481,2693.8,2693.6,3.21]
[1724705421296,0.00471481,2693.8,2693.7,0.7704]
[1724705423401,0.00471481,2693.8,2693.7,1.497]
[1724705426596,4.08782481,2693.8,2693.7,1.497]
[1724705427907,0.00471481,2693.8,2693.7,1.497]
[1724705429395,3.71671481,2693.8,2693.7,1.497]
[1724705429711,4.08782481,2693.8,2693.7,1.497]
[1724705429902,0.37582481,2693.8,2693.7,1.497]
[1724705431214,4.08782481,2693.8,2693.7,1.497]
[1724705431511,0.00471481,2693.8,2693.7,1.497]
[1724705431709,0.37582481,2693.8,2693.7,1.497]
[1724705432011,0.00471481,2693.8,2693.7,1.497]
[1724705432506,0.37582481,2693.8,2693.7,1.497]
[1724705437700,0.37582481,2693.8,2693.7,1.5012]
[1724705438515,0.00471481,2693.8,2693.7,1.5012]
[1724705438711,0.00471481,2693.8,2693.7,2.2113]
[1724705438919,0.37582481,2693.8,2693.7,2.2113]
[1724705440121,0.37582481,2693.8,2693.7,3.5513]
[1724705442711,0.00471481,2693.8,2693.7,3.5513]
[1724705442916,0.37582481,2693.8,2693.7,3.5513]
[1724705443114,0.00471481,2693.8,2693.7,3.5513]
[1724705443719,0.37582481,2693.8,2693.7,3.5513]
[1724705443911,0.00471481,2693.8,2693.7,3.5513]
[1724705450522,0.00471481,2693.8,2693.7,3.92242]
[1724705450719,0.00471481,2693.8,2693.7,3.5513]
[1724705453832,0.37582481,2693.8,2693.7,3.5513]
[1724705456820,15.49118481,2693.8,2693.7,0.0042]
[1724705457124,1.29899,2693.6,2693.5,0.00557051]
[1724705457325,3.56684,2693.6,2693.5,0.00557051]
[1724705457518,12.27964,2693.6,2693.5,0.00557051]
[1724705459122,15.48744,2693.6,2693.5,0.00557051]
[1724705460519,7.29174,2693.6,2693.5,1.34557051]
[1724705460723,0.37113,2693.7,2693.5,1.34557051]
[1724705460925,0.37113,2693.7,2693.6,2.7592]
[1724705461130,0.37113,2693.7,2693.6,3.4854]
[1724705461323,4.08393,2693.7,2693.6,3.4854]
[1724705461631,6.02756655,2693.7,2693.6,3.4854]
[1724705462027,6.02756655,2693.7,2693.6,2.1454]
[1724705462431,2.31476655,2693.7,2693.6,2.1454]
[1724705463232,2.31475655,2693.7,2693.6,2.1454]
[1724705464425,6.02755655,2693.7,2693.6,2.1454]
[1724705464927,2.31475655,2693.7,2693.6,2.1454]
[1724705470931,0.37112,2693.7,2693.6,2.1454]
[1724705471333,2.31475655,2693.7,2693.6,2.1454]
[1724705472141,0.37112,2693.7,2693.6,2.1454]
[1724705473336,1.94835136,2693.8,2693.6,6.22933]
[1724705473543,0.00471481,2693.8,2693.7,3.21]
[1724705473837,0.00471481,2693.8,2693.7,7.29312]
[1724705474143,0.00471481,2693.8,2693.7,3.21]
[1724705474340,0.00471481,2693.8,2693.7,6.922]
[1724705474643,0.37582481,2693.8,2693.7,3.712]
[1724705474844,0.37112,2693.7,2693.6,5.3554]
[1724705475145,0.37112,2693.7,2693.6,2.1454]
[1724705475637,2.31475655,2693.7,2693.6,2.1454]
[1724705478854,1.94363655,2693.7,2693.6,2.1454]
[1724705479144,2.31947136,2693.8,2693.6,2.1454]
[1724705479349,0.37583481,2693.8,2693.6,2.1454]
[1724705479551,2.31947136,2693.8,2693.6,2.1454]
[1724705480148,0.37112,2693.7,2693.6,2.1454]
[1724705482855,1.29893,2693.7,2693.6,2.1454]
[1724705483158,1.29899,2693.6,2693.5,0.00557051]
[1724705483547,5.01179,2693.6,2693.5,0.00557051]
[1724705483743,7.44133569,2693.6,2693.5,0.00557051]
[1724705483945,12.27964,2693.6,2693.5,0.00557051]
[1724705484154,11.48269,2693.6,2693.5,0.00557051]
[1724705488057,11.35179,2693.6,2693.5,0.00557051]
[1724705488252,6.35179,2693.6,2693.5,0.00557051]
[1724705490351,8.78148296,2693.6,2693.5,0.00557051]
[1724705490758,6.35179,2693.6,2693.5,0.00557051]
[1724705491055,0.37114,2693.6,2693.5,1.34557051]
[1724705492060,2.31466556,2693.6,2693.5,1.34557051]
[1724705492257,2.31466556,2693.6,2693.5,0.00557051]
[1724705492452,3.65466556,2693.6,2693.5,0.00557051]
[1724705492648,3.65466556,2693.6,2693.5,0.72637051]
[1724705493047,1.71114,2693.6,2693.5,1.40217051]
[1724705493457,2.31466556,2693.6,2693.5,1.40217051]
[1724705493856,0.37114,2693.6,2693.5,1.40217051]
[1724705494868,2.31466556,2693.6,2693.5,1.40217051]
[1724705495067,0.37114,2693.6,2693.5,1.40217051]
[1724705495267,2.31466556,2693.6,2693.5,1.40217051]
[1724705498470,2.3157304,2693.6,2693.5,1.40217051]
[1724705498767,3.24355591,2693.6,2693.5,1.40217051]
[1724705499270,1.29899,2693.6,2693.5,1.40217051]
[1724705500462,3.24366068,2693.6,2693.5,1.40217051]
[1724705501363,1.29899,2693.6,2693.5,1.40217051]
[1724705504678,3.72866368,2693.6,2693.5,1.40217051]
[1724705504968,1.29899,2693.6,2693.5,1.40217051]
[1724705511375,3.244217,2693.6,2693.5,1.40217051]
[1724705511573,1.29899,2693.6,2693.5,1.40217051]
[1724705511870,3.2442323,2693.6,2693.5,1.40217051]
[1724705512072,5.63747368,2693.7,2693.5,2.74217051]
[1724705512073,1.2854823,2693.7,2693.5,2.74217051]
[1724705512276,0.37114,2693.6,2693.5,1.40217051]
[1724705512467,1.6566123,2693.7,2693.6,1.34]
[1724705513780,0.37114,2693.6,2693.5,2.74217051]
[1724705514271,0.37114,2693.6,2693.5,6.45497051]
[1724705515068,0.37114,2693.6,2693.5,2.74217051]
[1724705515466,0.37114,2693.6,2693.5,6.45497051]
[1724705515870,0.37114,2693.6,2693.5,2.74217051]
[1724705516470,0.37114,2693.6,2693.5,1.40217051]
[1724705516471,2.63899,2693.6,2693.5,1.40217051]
[1724705516775,9.55959,2693.6,2693.5,1.40217051]
[1724705517673,6.35179,2693.6,2693.5,1.40217051]
[1724705517862,9.55959,2693.6,2693.5,1.40217051]
[1724705518067,12.91711368,2693.6,2693.5,0.00557051]
[1724705518280,11.47094,2693.6,2693.5,0.00557051]
[1724705520277,14.38048251,2693.6,2693.5,0.00557051]
[1724705520476,10.18499,2693.6,2693.5,0.00557051]
[1724705520669,9.55959,2693.6,2693.5,0.00557051]
[1724705520977,9.55959,2693.6,2693.5,1.28707051]
[1724705521879,3.57894,2693.6,2693.5,1.28707051]
[1724705522271,8.27888433,2693.6,2693.5,1.28707051]
[1724705523980,5.84679,2693.6,2693.5,1.28707051]
[1724705535383,4.50679,2693.6,2693.5,1.28707051]
[1724705536288,5.84679,2693.6,2693.5,1.28707051]
[1724705539084,6.77464,2693.6,2693.5,1.28707051]
[1724705540288,6.77464,2693.6,2693.5,0.00557051]
[1724705540588,10.48744,2693.6,2693.5,0.00557051]
[1724705540982,13.39698251,2693.6,2693.5,0.00557051]
[1724705542681,10.48744,2693.6,2693.5,0.00557051]
[1724705542882,6.77464,2693.6,2693.5,0.00557051]
[1724705543089,10.48744,2693.6,2693.5,0.00557051]
[1724705543388,6.77464,2693.6,2693.5,0.00557051]
[1724705544894,6.77464,2693.6,2693.5,0.00977051]
[1724705547693,10.48744,2693.6,2693.5,0.00977051]
[1724705547993,14.44338251,2693.6,2693.5,0.00977051]
[1724705548296,19.44338251,2693.6,2693.5,5.1e-07]
[1724705548592,16.53384,2693.6,2693.5,5.1e-07]
[1724705549097,20.42481937,2693.6,2693.5,5.1e-07]
[1724705549290,16.53384,2693.6,2693.5,5.1e-07]
[1724705549884,15.19384,2693.6,2693.5,5.1e-07]
[1724705550096,4.50679,2693.6,2693.5,5.1e-07]
[1724705550290,5.84679,2693.6,2693.5,5.1e-07]
[1724705550486,3.57894,2693.6,2693.5,5.1e-07]
[1724705550691,7.35162448,2693.6,2693.5,5.1e-07]
[1724705550987,9.55959,2693.6,2693.5,5.1e-07]
[1724705551190,2.22698,2693.4,2693.3,0.00557051]
[1724705551394,3.56698,2693.4,2693.3,0.00557051]
[1724705551591,7.27978,2693.4,2693.3,0.00557051]
[1724705551798,24.63246427,2693.4,2693.3,5.1e-07]
[1724705552493,24.63246427,2693.4,2692.9,0.638]
[1724705552494,0.37129,2692.5,2692.3,7.81551214]
[1724705552793,0.37129,2692.5,2692.2,5.51626821]
[1724705552794,1.71129,2692.5,2692.4,0.6517]
[1724705553186,4.58596313,2692.5,2692.4,0.6517]
[1724705553392,2.63951,2692.5,2692.4,0.6517]
[1724705554197,3.73024473,2692.5,2692.4,0.6517]
[1724705554801,7.44464473,2692.5,2692.4,0.6517]
[1724705554996,0.37131,2692.3,2692.2,1.36937051]
[1724705558204,0.37131,2692.3,2692.1,5.01e-06]
[1724705558205,5.94239,2692.2,2692.1,5.01e-06]
[1724705558400,12.64422473,2692.2,2692.1,5.01e-06]
[1724705558698,0.37141,2691.6,2691.5,0.6751]
[1724705558906,3.58141,2691.6,2691.5,0.6751]
[1724705559101,4.50994,2691.6,2691.5,0.6751]
[1724705559495,3.58141,2691.6,2691.5,0.6751]
[1724705559699,3.58438081,2691.6,2691.5,0.67783765]
[1724705560902,11.92817081,2691.6,2691.3,0.00557051]
[1724705561098,11.92817081,2691.6,2691.3,5.1e-07]
[1724705561099,1.30004,2691.4,2691.3,5.1e-07]
[1724705561409,12.82439544,2691.4,2691.3,5.1e-07]
[1724705561905,3.58144,2691.4,2691.3,0.00368369]
[1724705563204,11.926,2691.4,2690.6,1.9904]
[1724705563500,6.78933,2690.7,2690.6,1.9904]
[1724705564198,6.78933,2690.7,2690.6,1.99454932]
[1724705564504,0.37153,2690.8,2690.6,5.71134932]
[1724705564799,3.58153,2690.8,2690.6,1.99454932]
[1724705565209,0.37153,2690.7,2690.6,1.99454932]
[1724705566394,7.29613,2690.7,2690.6,1.34434932]
[1724705566600,3.57933,2690.7,2690.6,1.34434932]
[1724705567402,8.22497,2690.7,2690.6,0.00414932]
[1724705571800,3.57933,2690.7,2690.6,0.00414932]
[1724705572204,6.4178,2691.1,2690.6,3.72094932]
[1724705572408,0.3715,2691.0,2690.7,1.314]
[1724705572607,0.3715,2691.0,2690.8,0.6862]
[1724705572799,6.4178,2691.1,2690.8,0.6862]
[1724705572800,0.37151,2690.9,2690.8,0.6862]
[1724705575200,0.3715,2691.0,2690.8,4.4022]
[1724705575397,0.37151,2690.9,2690.8,0.6862]
[1724705575798,0.37151,2690.9,2690.8,4.4022]
[1724705577802,1.30033,2690.8,2690.7,1.314]
[1724705579306,1.30037,2690.7,2690.6,0.64424932]
[1724705579513,4.51037,2690.7,2690.6,0.00414932]
[1724705580207,8.22717,2690.7,2690.6,0.00414932]
[1724705580614,3.58153,2690.7,2690.6,0.00414932]
[1724705581402,4.51037,2690.7,2690.6,0.00414932]
[1724705582415,8.22717,2690.7,2690.6,0.00414932]
[1724705584818,11.43497,2690.7,2690.6,0.00414932]
[1724705585810,7.71817,2690.7,2690.6,0.00414932]
[1724705586011,6.78933,2690.7,2690.6,0.00414932]
[1724705588810,8.64701,2690.7,2690.6,9.32e-06]
[1724705588999,12.36381,2690.7,2690.6,9.32e-06]
[1724705590016,7.71817,2690.7,2690.6,9.32e-06]
[1724705593712,8.64701,2690.7,2690.6,9.32e-06]
[1724705594921,12.36381,2690.7,2690.6,9.32e-06]
[1724705595517,0.37165,2689.9,2689.8,1.9702]
[1724705595723,3.58165,2689.9,2689.8,1.9702]
[1724705595934,3.58165,2689.9,2689.8,5.6878]
[1724705596421,3.58165,2689.9,2689.8,5.69137874]
[1724705598517,3.58165,2689.9,2689.8,1.97377874]
[1724705598718,3.58165,2689.9,2689.8,5.69137874]
[1724705601125,3.58165,2689.9,2689.8,1.97377874]
[1724705601719,3.58165,2689.9,2689.8,5.69137874]
[1724705602527,3.58165,2689.9,2689.8,1.97377874]
[1724705605031,4.51077,2689.9,2689.8,1.97377874]
[1724705607431,4.51077,2689.9,2689.8,0.00357874]
[1724705608023,6.45269095,2689.9,2689.8,0.00357874]
[1724705608336,0.37167,2689.7,2689.6,0.00557051]
[1724705609127,0.37549407,2689.7,2689.6,0.00951817]
[1724705611141,1.30468407,2689.7,2689.6,0.00951817]
[1724705612228,4.65061407,2689.7,2689.4,2.0072]
[1724705612530,0.3717,2689.5,2689.4,2.0072]
[1724705612729,1.30096,2689.5,2689.4,2.0072]
[1724705613437,1.30096,2689.5,2689.4,2.01137496]
[1724705613736,0.3717,2689.5,2689.4,2.01137496]
[1724705614439,1.30096,2689.5,2689.4,2.01137496]
[1724705617426,0.3717,2689.5,2689.4,2.01137496]
[1724705618942,3.57949,2689.6,2689.4,5.72977496]
[1724705619141,0.3717,2689.5,2689.4,5.72977496]
[1724705619943,3.2078,2689.6,2689.4,5.72977496]
[1724705619944,3.57949,2689.6,2689.4,5.72977496]
[1724705621240,0.37169,2689.6,2689.4,5.72977496]
[1724705621539,3.21382407,2689.7,2689.5,3.7184]
[1724705621540,0.00382407,2689.7,2689.5,3.7184]
[1724705621736,0.37550407,2689.7,2689.5,3.7184]
[1724705621938,0.37550407,2689.7,2689.6,3.7184]
[1724705622740,3.58549407,2689.7,2689.6,3.7184]
[1724705624932,4.51468407,2689.7,2689.6,3.7184]
[1724705626236,0.3717,2689.5,2689.4,2.01137496]
[1724705626638,0.3717,2689.5,2689.4,5.72977496]
[1724705628247,0.3717,2689.5,2689.4,2.01137496]
[1724705630339,1.30096,2689.5,2689.4,0.00417496]
[1724705630543,1.97156,2689.5,2689.4,0.00417496]
[1724705630852,3.91348095,2689.5,2689.4,0.00417496]
[1724705632343,1.97156,2689.5,2689.4,0.00417496]
[1724705632745,3.91348095,2689.5,2689.4,0.00417496]
[1724705633454,1.97156,2689.5,2689.4,0.00417496]
[1724705633952,3.91674509,2689.5,2689.4,0.00417496]
[1724705634950,1.97156,2689.5,2689.4,0.00417496]
[1724705635353,3.91689822,2689.5,2689.4,0.00417496]
[1724705635547,3.24629822,2689.5,2689.4,0.00417496]
[1724705636353,6.96469822,2689.5,2689.4,0.00417496]
[1724705637454,5.01936,2689.5,2689.4,0.00417496]
[1724705637849,6.96497261,2689.5,2689.4,0.00417496]
[1724705638455,3.24657261,2689.5,2689.4,0.00417496]
[1724705639447,1.30096,2689.5,2689.4,0.00417496]
[1724705641857,3.72836119,2689.5,2689.4,0.00417496]
[1724705642753,3.72836119,2689.5,2689.2,0.0037137]
[1724705642754,3.35666119,2689.5,2689.2,0.0037137]
[1724705642963,0.37179,2688.9,2688.7,0.37181]
[1724705643153,0.37179,2688.9,2688.8,1.3653]
[1724705643358,3.58179,2688.9,2688.8,1.3653]
[1724705643753,3.58179,2688.9,2688.8,1.36944393]
[1724705645054,3.58179,2688.9,2688.8,0.00414393]
[1724705645055,7.30099,2688.9,2688.8,0.00414393]
[1724705645257,7.68899,2688.9,2688.8,0.00414393]
[1724705645471,7.68899,2688.9,2688.5,8.02435864]
[1724705645472,0.37182,2688.7,2688.5,8.02435864]
[1724705645660,9.26378694,2688.9,2688.5,4.81655864]
[1724705645661,3.58183,2688.6,2688.5,4.81655864]
[1724705646061,3.58183,2688.6,2688.5,0.6899]
[1724705646261,3.58183,2688.6,2688.2,0.6485]
[1724705646262,0.37187,2688.3,2688.2,0.6485]
[1724705646460,3.58187,2688.3,2688.2,0.6526766]
[1724705646765,3.58187,2688.3,2688.2,0.0041766]
[1724705647766,3.21,2688.3,2688.2,0.0041766]
[1724705649164,3.21557051,2688.5,2688.2,4.0960566]
[1724705649466,3.21557051,2688.5,2688.2,4.0960466]
[1724705649770,3.21,2688.3,2688.2,0.0041766]
[1724705649969,3.21,2688.3,2688.2,3.7241766]
[1724705652768,3.21,2688.3,2688.2,4.0960566]
[1724705652972,3.21,2688.3,2688.2,3.7241766]
[1724705654458,3.58187,2688.3,2688.2,0.0041766]
[1724705654861,3.21,2688.3,2688.2,0.0041766]
[1724705655258,3.58187,2688.3,2688.2,0.0041766]
[1724705657160,3.21,2688.3,2688.2,0.0041766]
[1724705658366,3.58187,2688.3,2688.2,0.0041766]
[1724705660573,3.21,2688.3,2688.2,3.7241766]
[1724705660872,3.21,2688.3,2688.2,4.0960566]
[1724705661767,0.00557051,2688.5,2688.4,0.37185]
[1724705661768,3.21557051,2688.5,2688.4,0.37185]
[1724705661971,0.00557051,2688.5,2688.4,0.37185]
[1724705662170,3.21,2688.7,2688.5,0.37184]
[1724705662376,3.21,2688.7,2688.6,0.681]
[1724705663873,3.21557051,2688.9,2688.7,0.3718]
[1724705664174,3.21557051,2688.9,2688.7,4.09101]
[1724705664478,3.21557051,2688.9,2688.8,3.7192]
[1724705665170,3.21557051,2688.9,2688.8,4.091]
[1724705665674,3.21557051,2688.9,2688.8,3.7192]
[1724705666175,3.21557051,2688.9,2688.8,4.091]
[1724705666762,3.21557051,2688.9,2688.8,3.7192]
[1724705668677,3.21557051,2688.9,2688.8,4.091]
[1724705668872,3.21557051,2688.9,2688.8,4.7259]
[1724705669078,3.21557051,2688.9,2688.8,9.7259]
[1724705669580,0.00557051,2688.9,2688.8,9.7259]
[1724705670079,3.21,2689.1,2689.0,0.37177]
[1724705670476,3.21,2689.1,2689.0,4.09017]
[1724705671481,3.21557051,2689.3,2689.2,0.37174]
[1724705671978,3.21557051,2689.3,2689.2,4.09014]
[1724705673381,3.21557051,2689.3,2689.2,4.3567]
[1724705673877,3.21557051,2689.3,2689.2,4.72844]
[1724705681983,1.34557051,2689.3,2689.2,4.72844]
[1724705687689,0.00557051,2689.3,2689.2,4.72844]
[1724705687891,1.34,2689.4,2689.3,0.37173]
[1724705688285,1.34,2689.4,2689.3,4.09013]
[1724705690506,1.71171,2689.4,2689.2,0.37174]
[1724705690702,1.34,2689.3,2689.2,0.37174]
[1724705700104,1.34,2689.3,2689.2,0.37594]
[1724705700614,1.34,2689.4,2689.2,3.7226]
[1724705700812,1.34,2689.4,2689.2,0.0042]
[1724705701319,1.34,2689.3,2689.2,0.0042]
[1724705701611,2.64106,2689.3,2689.2,0.0042]
[1724705701817,2.64106,2689.3,2688.7,7.2818]
[1724705701818,0.37178,2689.0,2688.7,4.074]
[1724705702007,1.34,2688.8,2688.6,0.98132]
[1724705702610,0.37176,2689.1,2688.6,0.6095]
[1724705702812,1.34,2688.8,2688.7,0.37181]
[1724705705311,1.34,2688.8,2688.6,0.98131]
[1724705705516,1.34,2688.7,2688.6,0.98131]
[1724705705920,1.34,2688.7,2688.6,0.98133]
[1724705709417,1.34,2688.7,2688.6,4.70053]
[1724705710233,1.34,2688.8,2688.7,0.37181]
[1724705710940,1.34,2689.0,2688.9,0.37178]
[1724705711627,1.34,2689.0,2688.8,0.37179]
[1724705711933,0.37176,2689.1,2688.9,0.6161]
[1724705712436,2.31896147,2689.2,2688.9,0.6161]